[Event "Titled Tuesday Blitz July 25 Late 2023"]
[White "Yu, Jennifer"]
[Black "Taghizadeh, Rayan"]
[WhiteFideId "2078341"]
[BlackFideId "2054019"]
[WhiteElo "2341"]
[BlackElo "2630"]
[Result "0-1"]
[Round "1"]
[TimeControl "180+2"]
[Date "2023.07.25"]
[WhiteClock "0:00:07"]
[BlackClock "0:00:41"]
[Board "117"]

1. Nf3 {[%clk 0:02:54]}  d5 {[%clk 0:02:59]} 2. g3 {[%clk 0:02:55]}  c6 {[%clk 0:02:53]} 3. Bg2 {[%clk 0:02:55]}  Bg4 {[%clk 0:02:52]} 4. O-O {[%clk 0:02:55]}  Nf6 {[%clk 0:02:52]} 5. d4 {[%clk 0:02:55]}  e6 {[%clk 0:02:53]} 6. Ne5 {[%clk 0:02:54]}  Bf5 {[%clk 0:02:52]} 7. c3 {[%clk 0:02:54]}  Nbd7 {[%clk 0:02:52]} 8. Nd2 {[%clk 0:02:54]}  Nxe5 {[%clk 0:02:51]} 9. dxe5 {[%clk 0:02:55]}  Nd7 {[%clk 0:02:52]} 10. f4 {[%clk 0:02:48]}  Bc5+ {[%clk 0:02:51]} 11. Kh1 {[%clk 0:02:48]}  h5 {[%clk 0:02:51]} 12. Nf3 {[%clk 0:02:47]}  Qe7 {[%clk 0:02:46]} 13. b4 {[%clk 0:02:43]}  Bb6 {[%clk 0:02:46]} 14. a4 {[%clk 0:02:43]}  a6 {[%clk 0:02:45]} 15. Ba3 {[%clk 0:02:37]}  f6 {[%clk 0:02:33]} 16. exf6 {[%clk 0:02:25]}  gxf6 {[%clk 0:02:29]} 17. Nh4 {[%clk 0:02:24]}  Kf7 {[%clk 0:01:55]} 18. b5 {[%clk 0:02:17]}  Bc5 {[%clk 0:01:48]} 19. Bxc5 {[%clk 0:02:13]}  Nxc5 {[%clk 0:01:49]} 20. bxc6 {[%clk 0:02:10]}  bxc6 {[%clk 0:01:47]} 21. Nxf5 {[%clk 0:01:53]}  exf5 {[%clk 0:01:48]} 22. c4 {[%clk 0:01:54]}  h4 {[%clk 0:01:40]} 23. gxh4 {[%clk 0:01:44]}  Rxh4 {[%clk 0:01:29]} 24. Rf3 {[%clk 0:01:14]}  Rg8 {[%clk 0:01:01]} 25. cxd5 {[%clk 0:01:09]}  Rhg4 {[%clk 0:00:54]} 26. Rg3 {[%clk 0:00:52]}  Rxg3 {[%clk 0:00:52]} 27. hxg3 {[%clk 0:00:53]}  Rh8+ {[%clk 0:00:52]} 28. Kg1 {[%clk 0:00:51]}  Qe3+ {[%clk 0:00:51]} 29. Kf1 {[%clk 0:00:51]}  Ne4 {[%clk 0:00:44]} 30. Bxe4 {[%clk 0:00:25]}  Qxe4 {[%clk 0:00:44]} 31. dxc6 {[%clk 0:00:07]}  Rh1+ {[%clk 0:00:41]} 0-1


[Site "https://www.chess.com"]

[Event "Titled Tuesday Blitz July 25 Late 2023"]
[White "Danielyan, Vahe"]
[Black "Prydun, Andriy"]
[WhiteFideId "13304828"]
[BlackFideId "14145898"]
[WhiteElo "2627"]
[BlackElo "2339"]
[Result "1-0"]
[Round "1"]
[TimeControl "180+2"]
[Date "2023.07.25"]
[WhiteClock "0:02:27"]
[BlackClock "0:00:00"]
[Board "118"]

1. e4 {[%clk 0:02:53]}  c5 {[%clk 0:02:59]} 2. Nc3 {[%clk 0:02:53]}  d6 {[%clk 0:02:54]} 3. d4 {[%clk 0:02:52]}  cxd4 {[%clk 0:02:53]} 4. Qxd4 {[%clk 0:02:53]}  Nc6 {[%clk 0:02:54]} 5. Qd2 {[%clk 0:02:52]}  g6 {[%clk 0:02:55]} 6. b3 {[%clk 0:02:50]}  Bg7 {[%clk 0:02:55]} 7. Bb2 {[%clk 0:02:50]}  Bg4 {[%clk 0:01:34]} 8. Be2 {[%clk 0:02:43]}  h5 {[%clk 0:01:31]} 9. O-O-O {[%clk 0:02:41]}  Rc8 {[%clk 0:01:13]} 10. Kb1 {[%clk 0:02:41]}  Nh6 {[%clk 0:01:00]} 11. f3 {[%clk 0:02:40]}  Be6 {[%clk 0:00:58]} 12. f4 {[%clk 0:02:40]}  O-O {[%clk 0:00:48]} 13. Nf3 {[%clk 0:02:40]}  Bg4 {[%clk 0:00:22]} 14. h3 {[%clk 0:02:39]}  Bxf3 {[%clk 0:00:22]} 15. Bxf3 {[%clk 0:02:40]}  Nd4 {[%clk 0:00:21]} 16. Rhf1 {[%clk 0:02:37]}  Nxf3 {[%clk 0:00:21]} 17. Rxf3 {[%clk 0:02:38]}  Re8 {[%clk 0:00:17]} 18. f5 {[%clk 0:02:37]}  Rc6 {[%clk 0:00:04]} 19. Nd5 {[%clk 0:02:34]}  e6 {[%clk 0:00:02]} 20. fxe6 {[%clk 0:02:29]}  fxe6 {[%clk 0:00:02]} 21. Nf6+ {[%clk 0:02:26]}  Bxf6 {[%clk 0:00:02]} 22. Bxf6 {[%clk 0:02:27]}  Qd7 {[%clk 0:00:00]} 23. Qxh6 {[%clk 0:02:27]} 1-0


[Site "https://www.chess.com"]

[Event "Titled Tuesday Blitz July 25 Late 2023"]
[White "Tanaka, Taira Tyler"]
[Black "Deviprasath, Sharvesh"]
[WhiteFideId "7002351"]
[BlackFideId "30938228"]
[WhiteElo "2617"]
[BlackElo "2330"]
[Result "1/2-1/2"]
[Round "1"]
[TimeControl "180+2"]
[Date "2023.07.25"]
[WhiteClock "0:00:31"]
[BlackClock "0:01:06"]
[Board "122"]

1. d4 {[%clk 0:03:00]}  Nf6 {[%clk 0:02:59]} 2. Nc3 {[%clk 0:03:01]}  d5 {[%clk 0:02:57]} 3. Bf4 {[%clk 0:03:02]}  g6 {[%clk 0:02:57]} 4. e3 {[%clk 0:03:01]}  Bg7 {[%clk 0:02:57]} 5. h4 {[%clk 0:03:01]}  h5 {[%clk 0:02:58]} 6. Nf3 {[%clk 0:03:01]}  O-O {[%clk 0:02:59]} 7. Be2 {[%clk 0:02:55]}  c5 {[%clk 0:02:57]} 8. dxc5 {[%clk 0:02:56]}  Qa5 {[%clk 0:02:56]} 9. O-O {[%clk 0:02:48]}  Qxc5 {[%clk 0:02:51]} 10. Nb5 {[%clk 0:02:46]}  Nc6 {[%clk 0:02:49]} 11. a3 {[%clk 0:02:33]}  Bf5 {[%clk 0:02:43]} 12. Rc1 {[%clk 0:02:26]}  Rac8 {[%clk 0:02:41]} 13. c4 {[%clk 0:02:24]}  dxc4 {[%clk 0:02:31]} 14. Bxc4 {[%clk 0:02:25]}  Rfd8 {[%clk 0:02:28]} 15. Qe2 {[%clk 0:02:26]}  Qb6 {[%clk 0:02:25]} 16. Ng5 {[%clk 0:02:12]}  Nd5 {[%clk 0:02:21]} 17. Bg3 {[%clk 0:02:01]}  Bf6 {[%clk 0:02:09]} 18. Nxf7 {[%clk 0:01:55]}  Kxf7 {[%clk 0:02:04]} 19. e4 {[%clk 0:01:55]}  Bg4 {[%clk 0:02:03]} 20. Qd3 {[%clk 0:01:51]}  Ne5 {[%clk 0:01:58]} 21. Bxe5 {[%clk 0:01:52]}  Bxe5 {[%clk 0:01:57]} 22. exd5 {[%clk 0:01:52]}  Kg7 {[%clk 0:01:56]} 23. Rfe1 {[%clk 0:01:46]}  Qf6 {[%clk 0:01:54]} 24. Nc3 {[%clk 0:01:42]}  Bf5 {[%clk 0:01:52]} 25. Qe2 {[%clk 0:01:42]}  Bd6 {[%clk 0:01:43]} 26. g3 {[%clk 0:01:29]}  Rf8 {[%clk 0:01:38]} 27. Bb3 {[%clk 0:01:24]}  Bc5 {[%clk 0:01:37]} 28. Na4 {[%clk 0:01:18]}  Bg4 {[%clk 0:01:33]} 29. Nxc5 {[%clk 0:01:02]}  Bxe2 {[%clk 0:01:33]} 30. Rxe2 {[%clk 0:01:03]}  Qf3 {[%clk 0:01:33]} 31. Ne6+ {[%clk 0:00:58]}  Kh6 {[%clk 0:01:31]} 32. Rce1 {[%clk 0:00:58]}  Qxb3 {[%clk 0:01:30]} 33. Nxf8 {[%clk 0:00:56]}  Rxf8 {[%clk 0:01:30]} 34. Rxe7 {[%clk 0:00:56]}  Qxb2 {[%clk 0:01:30]} 35. R1e2 {[%clk 0:00:54]}  Qxa3 {[%clk 0:01:30]} 36. Rxb7 {[%clk 0:00:52]}  Qf3 {[%clk 0:01:27]} 37. Rd2 {[%clk 0:00:49]}  Rd8 {[%clk 0:01:27]} 38. Rxa7 {[%clk 0:00:46]}  Rxd5 {[%clk 0:01:27]} 39. Rxd5 {[%clk 0:00:47]}  Qxd5 {[%clk 0:01:27]} 40. Re7 {[%clk 0:00:40]}  Qd4 {[%clk 0:01:20]} 41. Rf7 {[%clk 0:00:37]}  Qd1+ {[%clk 0:01:19]} 42. Kh2 {[%clk 0:00:38]}  Qf1 {[%clk 0:01:18]} 43. Rf6 {[%clk 0:00:35]}  Kg7 {[%clk 0:01:18]} 44. Rf4 {[%clk 0:00:36]}  g5 {[%clk 0:01:16]} 45. hxg5 {[%clk 0:00:36]}  Kg6 {[%clk 0:01:17]} 46. Rf8 {[%clk 0:00:34]}  Kxg5 {[%clk 0:01:16]} 47. Rf4 {[%clk 0:00:34]}  h4 {[%clk 0:01:15]} 48. Rxh4 {[%clk 0:00:31]}  Qxf2+ {[%clk 0:01:16]} 49. Kh3 {[%clk 0:00:31]}  Qf1+ {[%clk 0:01:14]} 50. Kh2 {[%clk 0:00:32]}  Qf5 {[%clk 0:01:13]} 51. Rf4 {[%clk 0:00:32]}  Qe6 {[%clk 0:01:13]} 52. Rh4 {[%clk 0:00:32]}  Qe5 {[%clk 0:01:12]} 53. Rf4 {[%clk 0:00:32]}  Qd5 {[%clk 0:01:06]} 54. Rh4 {[%clk 0:00:31]} 1/2-1/2


[Site "https://www.chess.com"]

[Event "Titled Tuesday Blitz July 25 Late 2023"]
[White "Lemos, Dawton Almino"]
[Black "Omelja, Artem"]
[WhiteFideId "2146797"]
[BlackFideId "14119846"]
[WhiteElo "2329"]
[BlackElo "2617"]
[Result "0-1"]
[Round "1"]
[TimeControl "180+2"]
[Date "2023.07.25"]
[WhiteClock "0:00:00"]
[BlackClock "0:00:27"]
[Board "123"]

1. e4 {[%clk 0:02:58]}  c5 {[%clk 0:02:54]} 2. Nf3 {[%clk 0:02:58]}  e6 {[%clk 0:02:54]} 3. d3 {[%clk 0:02:58]}  d5 {[%clk 0:02:53]} 4. Nbd2 {[%clk 0:02:57]}  Nf6 {[%clk 0:02:53]} 5. g3 {[%clk 0:02:58]}  Nc6 {[%clk 0:02:53]} 6. Bg2 {[%clk 0:02:58]}  Be7 {[%clk 0:02:53]} 7. O-O {[%clk 0:02:59]}  O-O {[%clk 0:02:52]} 8. Re1 {[%clk 0:02:59]}  b5 {[%clk 0:02:53]} 9. e5 {[%clk 0:02:59]}  Nd7 {[%clk 0:02:53]} 10. Nf1 {[%clk 0:03:00]}  a5 {[%clk 0:02:52]} 11. h4 {[%clk 0:03:00]}  Bb7 {[%clk 0:02:50]} 12. h5 {[%clk 0:03:01]}  h6 {[%clk 0:02:50]} 13. N1h2 {[%clk 0:03:01]}  Qc7 {[%clk 0:02:50]} 14. Ng4 {[%clk 0:03:01]}  Rac8 {[%clk 0:02:49]} 15. Bf4 {[%clk 0:03:01]}  Nd4 {[%clk 0:02:48]} 16. Nfh2 {[%clk 0:03:01]}  Rfe8 {[%clk 0:02:39]} 17. Qd2 {[%clk 0:02:49]}  Nf8 {[%clk 0:02:39]} 18. Bxh6 {[%clk 0:02:37]}  gxh6 {[%clk 0:02:38]} 19. Nxh6+ {[%clk 0:02:38]}  Kg7 {[%clk 0:02:37]} 20. N2g4 {[%clk 0:02:26]}  Nh7 {[%clk 0:02:33]} 21. c3 {[%clk 0:01:40]}  Nc6 {[%clk 0:02:23]} 22. Nxf7 {[%clk 0:01:32]}  Kxf7 {[%clk 0:02:17]} 23. Qh6 {[%clk 0:01:32]}  Kg8 {[%clk 0:01:55]} 24. Qxe6+ {[%clk 0:01:24]}  Kh8 {[%clk 0:01:55]} 25. f4 {[%clk 0:01:10]}  Bf8 {[%clk 0:01:43]} 26. Qg6 {[%clk 0:01:02]}  Qg7 {[%clk 0:01:38]} 27. Qxg7+ {[%clk 0:00:44]}  Bxg7 {[%clk 0:01:39]} 28. Bxd5 {[%clk 0:00:44]}  Rcd8 {[%clk 0:01:34]} 29. Be4 {[%clk 0:00:42]}  Re7 {[%clk 0:01:22]} 30. Ne3 {[%clk 0:00:41]}  Red7 {[%clk 0:01:15]} 31. e6 {[%clk 0:00:26]}  Re7 {[%clk 0:01:13]} 32. f5 {[%clk 0:00:05]}  Ng5 {[%clk 0:01:10]} 33. Kg2 {[%clk 0:00:03]}  Ne5 {[%clk 0:01:07]} 34. Bxb7 {[%clk 0:00:02]}  Rxb7 {[%clk 0:01:07]} 35. d4 {[%clk 0:00:01]}  cxd4 {[%clk 0:01:07]} 36. cxd4 {[%clk 0:00:02]}  Rxd4 {[%clk 0:01:02]} 37. Rad1 {[%clk 0:00:02]}  Nc6 {[%clk 0:00:45]} 38. Nd5 {[%clk 0:00:02]}  Ne7 {[%clk 0:00:28]} 39. Rxd4 {[%clk 0:00:00]}  Bxd4 {[%clk 0:00:27]} 0-1


[Site "https://www.chess.com"]

[Event "Titled Tuesday Blitz July 25 Late 2023"]
[White "Kujawski, Adam"]
[Black "musclemonster12"]
[WhiteFideId "1100920"]
[WhiteElo "2326"]
[BlackElo "2614"]
[Result "0-1"]
[Round "1"]
[TimeControl "180+2"]
[Date "2023.07.25"]
[WhiteClock "0:00:01"]
[BlackClock "0:01:20"]
[Board "125"]

1. e4 {[%clk 0:02:57]}  c5 {[%clk 0:03:00]} 2. Nf3 {[%clk 0:02:56]}  d6 {[%clk 0:02:59]} 3. d4 {[%clk 0:02:56]}  cxd4 {[%clk 0:03:00]} 4. Nxd4 {[%clk 0:02:57]}  Nf6 {[%clk 0:03:01]} 5. Nc3 {[%clk 0:02:57]}  Nc6 {[%clk 0:03:00]} 6. Bg5 {[%clk 0:02:56]}  e6 {[%clk 0:03:01]} 7. Qd2 {[%clk 0:02:56]}  a6 {[%clk 0:02:58]} 8. O-O-O {[%clk 0:02:56]}  Bd7 {[%clk 0:02:58]} 9. f4 {[%clk 0:02:55]}  Be7 {[%clk 0:02:58]} 10. Nf3 {[%clk 0:02:54]}  b5 {[%clk 0:02:51]} 11. Bxf6 {[%clk 0:02:50]}  gxf6 {[%clk 0:02:49]} 12. f5 {[%clk 0:02:50]}  Qb6 {[%clk 0:02:40]} 13. Kb1 {[%clk 0:02:50]}  h5 {[%clk 0:02:36]} 14. g3 {[%clk 0:02:35]}  O-O-O {[%clk 0:02:26]} 15. fxe6 {[%clk 0:02:34]}  fxe6 {[%clk 0:02:26]} 16. Bh3 {[%clk 0:02:34]}  Kb8 {[%clk 0:02:22]} 17. Ne2 {[%clk 0:02:24]}  Ne5 {[%clk 0:02:20]} 18. Nfd4 {[%clk 0:02:03]}  Nc4 {[%clk 0:02:10]} 19. Qd3 {[%clk 0:01:41]}  e5 {[%clk 0:01:59]} 20. Bxd7 {[%clk 0:01:23]}  Rxd7 {[%clk 0:01:48]} 21. Nf5 {[%clk 0:01:21]}  d5 {[%clk 0:01:48]} 22. exd5 {[%clk 0:01:12]}  Rhd8 {[%clk 0:01:48]} 23. Nc3 {[%clk 0:00:52]}  Bb4 {[%clk 0:01:32]} 24. Ne4 {[%clk 0:00:13]}  Bf8 {[%clk 0:01:28]} 25. b3 {[%clk 0:00:05]}  Na3+ {[%clk 0:01:28]} 26. Kb2 {[%clk 0:00:05]}  a5 {[%clk 0:01:29]} 27. d6 {[%clk 0:00:02]}  b4 {[%clk 0:01:29]} 28. Qd5 {[%clk 0:00:03]}  Nb5 {[%clk 0:01:28]} 29. Nc5 {[%clk 0:00:02]}  Ra7 {[%clk 0:01:21]} 30. d7 {[%clk 0:00:02]}  Bxc5 {[%clk 0:01:20]} 31. Qe6 {[%clk 0:00:01]}  Qxe6 {[%clk 0:01:20]} 0-1


[Site "https://www.chess.com"]

[Event "Titled Tuesday Blitz July 25 Late 2023"]
[White "Pinero Rodriguez, Carlos Jose"]
[Black "morozcoma"]
[WhiteFideId "3901726"]
[WhiteElo "2613"]
[BlackElo "2325"]
[Result "1-0"]
[Round "1"]
[TimeControl "180+2"]
[Date "2023.07.25"]
[WhiteClock "0:00:54"]
[BlackClock "0:01:06"]
[Board "126"]

1. b3 {[%clk 0:03:00]}  d5 {[%clk 0:02:50]} 2. Bb2 {[%clk 0:03:01]}  Nf6 {[%clk 0:02:49]} 3. Nf3 {[%clk 0:03:01]}  g6 {[%clk 0:02:49]} 4. e3 {[%clk 0:03:01]}  Bg7 {[%clk 0:02:50]} 5. d4 {[%clk 0:02:59]}  O-O {[%clk 0:02:51]} 6. Bd3 {[%clk 0:03:00]}  Nbd7 {[%clk 0:02:50]} 7. Nbd2 {[%clk 0:02:59]}  Re8 {[%clk 0:02:48]} 8. O-O {[%clk 0:02:58]}  c5 {[%clk 0:02:49]} 9. a3 {[%clk 0:02:56]}  cxd4 {[%clk 0:02:46]} 10. exd4 {[%clk 0:02:57]}  Nf8 {[%clk 0:02:41]} 11. h3 {[%clk 0:02:55]}  h6 {[%clk 0:02:39]} 12. Ne5 {[%clk 0:02:53]}  g5 {[%clk 0:02:38]} 13. Qe2 {[%clk 0:02:43]}  Be6 {[%clk 0:02:33]} 14. f4 {[%clk 0:02:38]}  gxf4 {[%clk 0:02:31]} 15. Rxf4 {[%clk 0:02:39]}  N8d7 {[%clk 0:02:26]} 16. Raf1 {[%clk 0:02:38]}  Nxe5 {[%clk 0:02:23]} 17. dxe5 {[%clk 0:02:37]}  Nd7 {[%clk 0:02:24]} 18. Qh5 {[%clk 0:02:06]}  Rf8 {[%clk 0:02:21]} 19. R1f3 {[%clk 0:01:44]}  Kh8 {[%clk 0:01:57]} 20. Rg3 {[%clk 0:01:43]}  Rg8 {[%clk 0:01:57]} 21. Rh4 {[%clk 0:01:36]}  Qf8 {[%clk 0:01:56]} 22. Nf3 {[%clk 0:01:34]}  f5 {[%clk 0:01:37]} 23. exf6 {[%clk 0:01:27]}  Nxf6 {[%clk 0:01:35]} 24. Bxf6 {[%clk 0:01:09]}  Qxf6 {[%clk 0:01:33]} 25. Rg6 {[%clk 0:01:09]}  Qa1+ {[%clk 0:01:16]} 26. Kh2 {[%clk 0:01:04]}  Be5+ {[%clk 0:01:09]} 27. Nxe5 {[%clk 0:00:55]}  Qxe5+ {[%clk 0:01:06]} 28. Qxe5+ {[%clk 0:00:54]} 1-0


[Site "https://www.chess.com"]

[Event "Titled Tuesday Blitz July 25 Late 2023"]
[White "Korpics, Zsolt"]
[Black "ArtemDyachuk"]
[WhiteFideId "705241"]
[WhiteElo "2325"]
[BlackElo "2607"]
[Result "0-1"]
[Round "1"]
[TimeControl "180+2"]
[Date "2023.07.25"]
[WhiteClock "0:00:00"]
[BlackClock "0:00:17"]
[Board "127"]

1. e4 {[%clk 0:02:59]}  c6 {[%clk 0:02:57]} 2. Nf3 {[%clk 0:02:58]}  d5 {[%clk 0:02:57]} 3. Nc3 {[%clk 0:02:58]}  Nf6 {[%clk 0:02:47]} 4. e5 {[%clk 0:02:56]}  Ne4 {[%clk 0:02:48]} 5. Ne2 {[%clk 0:02:56]}  Qb6 {[%clk 0:02:47]} 6. d4 {[%clk 0:02:56]}  e6 {[%clk 0:02:47]} 7. g3 {[%clk 0:02:53]}  c5 {[%clk 0:02:46]} 8. Bg2 {[%clk 0:02:37]}  Nc6 {[%clk 0:02:46]} 9. O-O {[%clk 0:02:32]}  cxd4 {[%clk 0:02:45]} 10. Nexd4 {[%clk 0:02:32]}  Bc5 {[%clk 0:02:45]} 11. c3 {[%clk 0:02:31]}  Bd7 {[%clk 0:02:44]} 12. b4 {[%clk 0:02:12]}  Bxd4 {[%clk 0:02:42]} 13. cxd4 {[%clk 0:02:02]}  Nc3 {[%clk 0:02:33]} 14. Qd3 {[%clk 0:01:55]}  Nxd4 {[%clk 0:02:33]} 15. Be3 {[%clk 0:01:39]}  Bb5 {[%clk 0:02:27]} 16. Qd2 {[%clk 0:01:30]}  Nde2+ {[%clk 0:01:47]} 17. Kh1 {[%clk 0:01:30]}  Qa6 {[%clk 0:01:46]} 18. Rfe1 {[%clk 0:01:20]}  Ne4 {[%clk 0:01:39]} 19. Qb2 {[%clk 0:01:12]}  N2c3 {[%clk 0:01:37]} 20. Nd4 {[%clk 0:00:52]}  Na4 {[%clk 0:01:34]} 21. Qb3 {[%clk 0:00:44]}  O-O {[%clk 0:01:22]} 22. Nxb5 {[%clk 0:00:35]}  Qxb5 {[%clk 0:01:21]} 23. Bf1 {[%clk 0:00:35]}  Qd7 {[%clk 0:01:20]} 24. f3 {[%clk 0:00:31]}  d4 {[%clk 0:01:11]} 25. Rad1 {[%clk 0:00:21]}  Nec3 {[%clk 0:01:01]} 26. Rxd4 {[%clk 0:00:20]}  Nd5 {[%clk 0:01:00]} 27. Bc4 {[%clk 0:00:16]}  Nab6 {[%clk 0:01:00]} 28. Bd3 {[%clk 0:00:15]}  Rac8 {[%clk 0:00:55]} 29. Bd2 {[%clk 0:00:13]}  Rfd8 {[%clk 0:00:42]} 30. Rh4 {[%clk 0:00:12]}  g6 {[%clk 0:00:28]} 31. Be4 {[%clk 0:00:12]}  Qa4 {[%clk 0:00:25]} 32. Qb2 {[%clk 0:00:09]}  Nc4 {[%clk 0:00:20]} 33. Qd4 {[%clk 0:00:03]}  Ndb6 {[%clk 0:00:19]} 34. Qf2 {[%clk 0:00:01]}  Rxd2 {[%clk 0:00:18]} 35. Re2 {[%clk 0:00:00]}  Qd1+ {[%clk 0:00:17]} 0-1


[Site "https://www.chess.com"]

[Event "Titled Tuesday Blitz July 25 Late 2023"]
[White "Fajdetic, Hrvoje"]
[Black "Andrej2004"]
[WhiteFideId "14501945"]
[WhiteElo "2316"]
[BlackElo "2603"]
[Result "1-0"]
[Round "1"]
[TimeControl "180+2"]
[Date "2023.07.25"]
[WhiteClock "0:00:10"]
[BlackClock "0:00:23"]
[Board "131"]

1. d4 {[%clk 0:02:58]}  Nf6 {[%clk 0:02:56]} 2. Bf4 {[%clk 0:02:58]}  b6 {[%clk 0:02:54]} 3. Nc3 {[%clk 0:02:57]}  Bb7 {[%clk 0:02:55]} 4. Qd3 {[%clk 0:02:57]}  g6 {[%clk 0:02:53]} 5. e4 {[%clk 0:02:57]}  d6 {[%clk 0:02:54]} 6. O-O-O {[%clk 0:02:55]}  Bg7 {[%clk 0:02:53]} 7. f3 {[%clk 0:02:52]}  O-O {[%clk 0:02:53]} 8. Qe3 {[%clk 0:02:51]}  Re8 {[%clk 0:02:52]} 9. Bh6 {[%clk 0:02:50]}  Bh8 {[%clk 0:02:53]} 10. h4 {[%clk 0:02:51]}  c5 {[%clk 0:02:51]} 11. d5 {[%clk 0:02:47]}  e6 {[%clk 0:02:49]} 12. h5 {[%clk 0:02:46]}  exd5 {[%clk 0:02:48]} 13. hxg6 {[%clk 0:02:46]}  hxg6 {[%clk 0:02:46]} 14. Qg5 {[%clk 0:02:07]}  Re5 {[%clk 0:02:37]} 15. Qg3 {[%clk 0:01:58]}  Nh5 {[%clk 0:02:26]} 16. Qf2 {[%clk 0:01:45]}  d4 {[%clk 0:02:26]} 17. g4 {[%clk 0:01:34]}  dxc3 {[%clk 0:02:24]} 18. gxh5 {[%clk 0:01:34]}  cxb2+ {[%clk 0:02:23]} 19. Kb1 {[%clk 0:01:34]}  g5 {[%clk 0:01:45]} 20. Nh3 {[%clk 0:01:16]}  Qf6 {[%clk 0:01:42]} 21. Nxg5 {[%clk 0:01:13]}  Qxh6 {[%clk 0:01:39]} 22. f4 {[%clk 0:01:11]}  Re8 {[%clk 0:01:32]} 23. Bc4 {[%clk 0:01:09]}  d5 {[%clk 0:01:33]} 24. exd5 {[%clk 0:01:05]}  Ba6 {[%clk 0:01:20]} 25. Bxa6 {[%clk 0:00:47]}  Nxa6 {[%clk 0:01:21]} 26. Rhg1 {[%clk 0:00:40]}  Kf8 {[%clk 0:01:20]} 27. f5 {[%clk 0:00:33]}  Bf6 {[%clk 0:01:14]} 28. Ne6+ {[%clk 0:00:29]}  fxe6 {[%clk 0:01:10]} 29. Rg6 {[%clk 0:00:29]}  Qxh5 {[%clk 0:00:57]} 30. Rxf6+ {[%clk 0:00:27]}  Ke7 {[%clk 0:00:57]} 31. Rf1 {[%clk 0:00:24]}  Kxf6 {[%clk 0:00:41]} 32. fxe6+ {[%clk 0:00:24]}  Ke5 {[%clk 0:00:32]} 33. c4 {[%clk 0:00:15]}  Qg5 {[%clk 0:00:27]} 34. Qh2+ {[%clk 0:00:13]}  Kd4 {[%clk 0:00:27]} 35. Rf4+ {[%clk 0:00:12]}  Kc3 {[%clk 0:00:27]} 36. Qh3+ {[%clk 0:00:10]}  Kd2 {[%clk 0:00:24]} 37. Rf2+ {[%clk 0:00:09]}  Ke1 {[%clk 0:00:23]} 38. Qf1# {[%clk 0:00:10]} 1-0


[Site "https://www.chess.com"]

[Event "Titled Tuesday Blitz July 25 Late 2023"]
[White "Sivakumar, Shaashwath"]
[Black "Fernandez Siles, Luis"]
[WhiteFideId "30912156"]
[BlackFideId "2209420"]
[WhiteElo "2602"]
[BlackElo "2314"]
[Result "0-1"]
[Round "1"]
[TimeControl "180+2"]
[Date "2023.07.25"]
[WhiteClock "0:01:16"]
[BlackClock "0:01:04"]
[Board "132"]

1. d4 {[%clk 0:03:00]}  Nf6 {[%clk 0:02:58]} 2. c4 {[%clk 0:03:00]}  d6 {[%clk 0:02:58]} 3. Nc3 {[%clk 0:02:59]}  Nbd7 {[%clk 0:02:58]} 4. e4 {[%clk 0:02:59]}  e5 {[%clk 0:02:57]} 5. Nge2 {[%clk 0:02:58]}  Be7 {[%clk 0:02:54]} 6. f3 {[%clk 0:02:58]}  O-O {[%clk 0:02:53]} 7. Be3 {[%clk 0:02:59]}  c6 {[%clk 0:02:51]} 8. Qd2 {[%clk 0:02:59]}  Re8 {[%clk 0:02:41]} 9. d5 {[%clk 0:02:59]}  cxd5 {[%clk 0:02:28]} 10. cxd5 {[%clk 0:02:58]}  a6 {[%clk 0:02:28]} 11. g4 {[%clk 0:02:57]}  b5 {[%clk 0:02:24]} 12. Ng3 {[%clk 0:02:57]}  Nb6 {[%clk 0:02:19]} 13. g5 {[%clk 0:02:51]}  Nfd7 {[%clk 0:02:17]} 14. Nf5 {[%clk 0:02:51]}  Bf8 {[%clk 0:02:09]} 15. Bd3 {[%clk 0:02:44]}  Nc4 {[%clk 0:01:56]} 16. Bxc4 {[%clk 0:02:44]}  bxc4 {[%clk 0:01:57]} 17. Qe2 {[%clk 0:02:36]}  Rb8 {[%clk 0:01:50]} 18. Qxc4 {[%clk 0:02:21]}  Rxb2 {[%clk 0:01:47]} 19. O-O {[%clk 0:02:21]}  Nc5 {[%clk 0:01:33]} 20. Bxc5 {[%clk 0:02:18]}  Qxg5+ {[%clk 0:01:29]} 21. Ng3 {[%clk 0:02:16]}  dxc5 {[%clk 0:01:27]} 22. Rab1 {[%clk 0:02:12]}  Qe3+ {[%clk 0:01:15]} 23. Kh1 {[%clk 0:02:11]}  Rc2 {[%clk 0:01:14]} 24. Rb3 {[%clk 0:01:27]}  Bh3 {[%clk 0:01:11]} 25. Nd1 {[%clk 0:01:16]}  Bg2# {[%clk 0:01:04]} 0-1


[Site "https://www.chess.com"]

[Event "Titled Tuesday Blitz July 25 Late 2023"]
[White "Biliy, Vadim"]
[Black "Zavgorodniy, Sergiy"]
[WhiteFideId "14114127"]
[BlackFideId "14110148"]
[WhiteElo "2314"]
[BlackElo "2602"]
[Result "0-1"]
[Round "1"]
[TimeControl "180+2"]
[Date "2023.07.25"]
[WhiteClock "0:01:57"]
[BlackClock "0:02:47"]
[Board "133"]

1. d4 {[%clk 0:02:58]}  d5 {[%clk 0:02:55]} 2. Nf3 {[%clk 0:02:58]}  Nf6 {[%clk 0:02:54]} 3. e3 {[%clk 0:02:58]}  e6 {[%clk 0:02:54]} 4. c4 {[%clk 0:02:57]}  dxc4 {[%clk 0:02:53]} 5. Bxc4 {[%clk 0:02:56]}  a6 {[%clk 0:02:53]} 6. Nc3 {[%clk 0:02:55]}  b5 {[%clk 0:02:53]} 7. Bb3 {[%clk 0:02:54]}  Bb7 {[%clk 0:02:53]} 8. O-O {[%clk 0:02:54]}  Nbd7 {[%clk 0:02:53]} 9. Qe2 {[%clk 0:02:55]}  c5 {[%clk 0:02:53]} 10. Rd1 {[%clk 0:02:49]}  Qc7 {[%clk 0:02:53]} 11. dxc5 {[%clk 0:02:17]}  Bxc5 {[%clk 0:02:49]} 12. e4 {[%clk 0:02:09]}  Ng4 {[%clk 0:02:48]} 13. Nd4 {[%clk 0:01:57]}  Qxh2+ {[%clk 0:02:47]} 0-1


[Site "https://www.chess.com"]